bitfinex/quotes_BTCUSD_20250119
["timestamp","ask_amount","ask_price","bid_price","bid_amount"]
[1737318959999,0.00036277,105970.0,105960.0,0.14154481]
[1737318962581,0.00133626,105970.0,105960.0,0.14154481]
[1737318962719,0.00036277,105970.0,105960.0,0.14154481]
[1737318964062,0.00133626,105970.0,105960.0,0.14154481]
[1737318964406,0.00036277,105970.0,105960.0,0.14154481]
[1737318964527,0.00036277,105970.0,105960.0,0.1402139]
[1737318965584,0.00036277,105970.0,105960.0,0.14316589]
[1737318965790,0.65843661,105980.0,105970.0,0.094366]
[1737318965987,0.7529501,105980.0,105970.0,0.094366]
[1737318966217,0.7529501,105980.0,105970.0,0.14153581]
[1737318966907,0.39984149,105980.0,105970.0,0.14153581]
[1737318969372,0.210968,105980.0,105970.0,0.22143581]
[1737318969582,0.37974241,105980.0,105970.0,0.22143581]
[1737318969993,0.37974241,105980.0,105970.0,0.26693581]
[1737318970403,0.38064184,105980.0,105970.0,0.26693581]
[1737318970774,0.00089943,105980.0,105970.0,0.26693581]
[1737318973522,0.00089943,105980.0,105970.0,0.27602665]
[1737318975115,0.00089943,105980.0,105970.0,0.23052665]
[1737318980965,0.09525643,105980.0,105970.0,0.15062665]
[1737318981116,0.00187292,105980.0,105970.0,0.15062665]
[1737318981538,0.18061712,105980.0,105970.0,0.15062665]
[1737318982175,0.18061712,105980.0,105970.0,0.14196401]
[1737318982607,0.35793061,105980.0,105970.0,0.04759801]
[1737318982730,0.56951233,105980.0,105970.0,0.14196401]
[1737318982954,0.38064184,105980.0,105970.0,0.14196401]
[1737318984069,0.50722265,105980.0,105970.0,0.14196401]
[1737318984844,0.50722265,105980.0,105970.0,0.22156401]
[1737318984978,0.12748023,105980.0,105970.0,0.22156401]
[1737318985999,0.00089943,105980.0,105970.0,0.22156401]
[1737318987639,0.00089943,105980.0,105970.0,0.57680012]
[1737318988031,0.00089943,105980.0,105970.0,0.67713957]
[1737318988234,0.00089943,105980.0,105970.0,1.16013802]
[1737318989326,0.00089943,105980.0,105970.0,1.15979857]
[1737318989527,4.3e-07,105980.0,105970.0,1.30979857]
[1737318990799,0.08545709,106010.0,106000.0,0.175939]
[1737318990997,0.00139759,106010.0,106000.0,0.33311837]
[1737318991220,0.00139759,106010.0,106000.0,0.48217511]
[1737318991601,0.00139759,106010.0,106000.0,0.52934492]
[1737318992048,0.00139759,106010.0,106000.0,0.52969906]
[1737318992328,0.00139759,106010.0,106000.0,0.67869906]
[1737318992736,0.0004277,106030.0,106020.0,0.094321]
[1737318992923,0.00057724,106030.0,106020.0,0.89269252]
[1737318993118,0.00057724,106030.0,106020.0,0.89174954]
[1737318996111,0.0004283,106040.0,106030.0,0.38833462]
[1737318996528,0.0004283,106040.0,106030.0,0.43001792]
[1737318997371,0.0004283,106040.0,106030.0,0.83001792]
[1737318997502,0.0004283,106040.0,106030.0,1.31301637]
[1737318997701,0.0004283,106040.0,106030.0,1.37473899]
[1737318997926,0.0004283,106040.0,106030.0,1.25129375]
[1737318998126,0.0004283,106040.0,106030.0,1.37473899]
[1737318998678,1.6e-07,106050.0,106040.0,0.517304]
[1737318998809,0.0004682,106060.0,106050.0,0.476595]
[1737318999010,0.0004682,106060.0,106050.0,1.17755218]
[1737318999360,0.0004682,106060.0,106050.0,1.20504304]
[1737318999539,0.0004682,106060.0,106050.0,1.25221285]
[1737318999911,0.0004682,106060.0,106050.0,1.22472199]
[1737319001664,0.0164091,106080.0,106070.0,0.094277]
[1737319001868,0.01655858,106080.0,106070.0,1.02584652]
[1737319002034,0.01655858,106080.0,106070.0,1.07470399]
[1737319002464,0.01655858,106080.0,106070.0,1.01298137]
[1737319002706,0.01655858,106080.0,106070.0,1.34107796]
[1737319002889,0.01655858,106080.0,106070.0,1.35763696]
[1737319003485,0.01655858,106080.0,106070.0,1.35799647]
[1737319003686,0.01655858,106080.0,106070.0,1.41971909]
[1737319003884,0.01655858,106080.0,106070.0,1.35799647]
[1737319005305,0.361487,106130.0,106110.0,0.094238]
[1737319005502,0.0008465,106120.0,106110.0,0.32988181]
[1737319005702,0.09499139,106120.0,106110.0,0.32988181]
[1737319006681,0.094232,106120.0,106110.0,0.32988181]
[1737319007299,0.094232,106120.0,106100.0,0.188491]
[1737319007500,0.094232,106120.0,106110.0,0.282708]
[1737319007701,0.36241349,106130.0,106120.0,0.094232]
[1737319007928,0.36241349,106130.0,106110.0,0.471182]
[1737319008127,0.36241349,106130.0,106110.0,0.659655]
[1737319008329,0.07972649,106130.0,106120.0,0.094232]
[1737319008754,0.00092649,106130.0,106120.0,0.15595462]
[1737319009000,0.00092649,106130.0,106120.0,0.47831043]
[1737319009190,0.00092649,106130.0,106120.0,0.47736811]
[1737319009394,0.00092649,106130.0,106120.0,0.52453792]
[1737319010190,0.00092649,106130.0,106120.0,0.62453792]
[1737319010933,0.00092649,106130.0,106120.0,0.6538919]
[1737319011285,0.00092649,106130.0,106120.0,0.52453792]
[1737319011685,0.00092649,106130.0,106120.0,0.4628153]
[1737319012106,0.00092649,106130.0,106120.0,0.70338108]
[1737319012877,0.00092649,106130.0,106120.0,0.85338108]
[1737319013493,0.0004282,106140.0,106120.0,0.92288108]
[1737319013691,0.00118759,106170.0,106160.0,0.094197]
[1737319013930,0.00057765,106170.0,106160.0,0.29760292]
[1737319014151,0.00057765,106170.0,106160.0,0.56120145]
[1737319014353,0.00057765,106170.0,106160.0,0.53000292]
[1737319014527,0.00057765,106170.0,106160.0,1.01300137]
[1737319015138,0.00047765,106170.0,106160.0,0.2916833]
[1737319015339,0.00047765,106170.0,106160.0,0.3858803]
[1737319015595,0.00047765,106170.0,106160.0,0.44760292]
[1737319015781,0.00047765,106170.0,106160.0,0.3858803]
[1737319016566,0.00047765,106170.0,106160.0,0.44760292]
[1737319016972,0.32468975,106200.0,106170.0,0.244187]
[1737319017174,0.51302175,106200.0,106170.0,0.3858713]
[1737319017676,0.70135775,106200.0,106170.0,0.2916833]
[1737319017875,0.47122349,106190.0,106170.0,0.04716981]
[1737319018076,0.282529,106190.0,106170.0,0.53016826]
[1737319018428,0.470881,106190.0,106170.0,0.53016826]
[1737319019592,0.282528,106190.0,106170.0,0.53016826]
[1737319020656,0.094179,106180.0,106170.0,0.53016826]
[1737319020863,0.094179,106180.0,106170.0,0.59016826]
[1737319021084,0.18869249,106180.0,106170.0,0.10716981]
[1737319021488,0.33869249,106180.0,106170.0,0.10716981]
[1737319021689,0.46049249,106180.0,106170.0,0.10716981]
[1737319023039,0.282596,106160.0,106140.0,0.00989096]
[1737319023255,0.094206,106150.0,106140.0,0.00014945]
[1737319024477,0.626968,106160.0,106140.0,0.00014945]
[1737319024650,0.094206,106150.0,106140.0,0.00014945]
[1737319025595,0.715377,106160.0,106140.0,0.00932945]
[1737319026014,0.171906,106150.0,106140.0,0.00932945]
[1737319027128,0.41641949,106150.0,106140.0,0.00932945]
[1737319028297,0.61331949,106150.0,106140.0,0.00932945]
[1737319028504,0.48631949,106150.0,106140.0,0.00932945]
[1737319028670,0.48631949,106150.0,106120.0,0.05]
[1737319028671,0.273,106140.0,106120.0,0.05]
[1737319028870,0.54469749,106130.0,106120.0,0.05]
[1737319029394,0.44469749,106130.0,106120.0,0.05]
[1737319029595,0.42169749,106130.0,106120.0,0.05]
[1737319030873,0.41573749,106130.0,106120.0,0.05]
[1737319031064,0.42169749,106130.0,106120.0,0.05]
[1737319031830,0.57169749,106130.0,106120.0,0.05]
[1737319032083,0.42169749,106130.0,106120.0,0.05]
[1737319032486,0.42169749,106130.0,106120.0,0.09711426]
[1737319034839,0.63921098,106130.0,106120.0,0.09711426]
[1737319035453,0.58491098,106130.0,106120.0,0.09711426]
[1737319035677,0.96482427,106130.0,106120.0,0.09711426]
[1737319035873,0.094259,106090.0,106080.0,0.00089838]
[1737319036997,0.094259,106090.0,106080.0,0.00139677]
[1737319037195,0.33877249,106090.0,106080.0,0.00139677]
[1737319038217,0.282844,106070.0,106050.0,0.41902333]
[1737319038571,0.471406,106070.0,106050.0,0.56080056]
[1737319038703,0.282844,106070.0,106050.0,0.74938856]
[1737319039128,0.282844,106070.0,106050.0,0.74006058]
[1737319041481,0.282844,106070.0,106050.0,0.79006058]
[1737319041941,0.471408,106070.0,106050.0,0.60147258]
[1737319042225,0.471408,106070.0,106050.0,0.60237075]
[1737319043024,0.282844,106070.0,106050.0,0.79094975]
[1737319043577,0.471407,106070.0,106050.0,0.79094975]
[1737319044255,0.471407,106070.0,106050.0,0.60236175]
[1737319044387,0.471407,106070.0,106050.0,0.79094175]
[1737319045439,0.471407,106070.0,106050.0,0.97952275]
[1737319045660,0.471407,106070.0,106050.0,0.79094175]
[1737319046015,0.471407,106070.0,106050.0,0.97952475]
[1737319046363,0.471407,106070.0,106050.0,0.79094175]
[1737319046563,0.094286,106060.0,106050.0,0.50784826]
[1737319048142,0.565693,106070.0,106050.0,0.50784826]
[1737319048347,0.471408,106070.0,106050.0,0.50784826]
[1737319048665,0.471407,106070.0,106050.0,0.69642526]
[1737319049021,0.471407,106070.0,106050.0,0.88500626]
[1737319049541,0.282845,106070.0,106050.0,0.88500326]
[1737319049751,0.282845,106070.0,106060.0,0.094286]
[1737319049987,0.282845,106070.0,106060.0,0.14140026]
[1737319050551,0.282845,106070.0,106060.0,0.04711426]
[1737319050968,0.282845,106070.0,106060.0,0.14140026]
[1737319051350,0.282819,106080.0,106070.0,0.094277]
[1737319051555,0.282819,106080.0,106070.0,0.04711426]
[1737319053012,0.282819,106080.0,106070.0,0.14139126]
[1737319053170,0.282819,106080.0,106070.0,0.04711426]
[1737319054170,0.282819,106080.0,106070.0,0.14139126]
[1737319054582,0.282819,106080.0,106070.0,0.04711426]
[1737319057091,0.088545,106080.0,106070.0,0.04711426]
[1737319057299,0.27709,106080.0,106070.0,0.04711426]
[1737319058871,0.282788,106090.0,106080.0,0.094268]
[1737319059074,0.094251,106100.0,106090.0,0.094255]
[1737319059299,0.73196862,106110.0,106090.0,0.282773]
[1737319059530,0.09425,106100.0,106090.0,0.32988726]
[1737319059868,0.55521462,106110.0,106090.0,0.51838726]
[1737319060072,0.36671862,106110.0,106100.0,0.09425]
[1737319060186,0.282731,106110.0,106100.0,0.14136426]
[1737319060386,0.282731,106110.0,106100.0,0.04711426]
[1737319061035,0.282731,106110.0,106100.0,0.14136426]
[1737319063007,0.282704,106120.0,106100.0,0.42409426]
[1737319063206,0.56618895,106120.0,106100.0,0.51833726]
[1737319063443,0.09473446,106120.0,106110.0,0.094241]
[1737319063630,0.09473446,106120.0,106110.0,0.14135526]
[1737319064478,0.00049846,106120.0,106110.0,0.57191198]
[1737319064673,0.00049846,106120.0,106110.0,0.63247033]
[1737319064924,0.00049846,106120.0,106110.0,0.73247033]
[1737319065314,0.0004277,106130.0,106120.0,0.37933279]
[1737319065520,0.00057717,106130.0,106120.0,0.52096054]
[1737319067217,0.00057717,106130.0,106120.0,0.35945975]
[1737319067433,0.00057717,106130.0,106120.0,0.50945975]
[1737319069177,0.00057717,106130.0,106120.0,0.5187998]
[1737319072773,0.00057717,106130.0,106120.0,0.58030059]
[1737319072975,0.00057717,106130.0,106120.0,0.68030059]
[1737319074296,1.7e-07,106130.0,106120.0,0.68030059]
[1737319074723,0.37794431,106180.0,106160.0,0.282572]
[1737319074929,0.37809394,106180.0,106170.0,0.094188]
[1737319075142,0.37809394,106180.0,106160.0,0.70645226]
[1737319075297,0.37809394,106180.0,106160.0,0.51806826]
[1737319075702,0.00014963,106180.0,106160.0,0.51806826]
[1737319075921,0.15014963,106180.0,106160.0,0.32968526]
[1737319076299,0.33884612,106180.0,106160.0,0.04711426]
[1737319076645,0.33884612,106180.0,106160.0,0.14130926]
[1737319076981,0.52720712,106180.0,106160.0,0.04711426]
[1737319077525,0.71557512,106180.0,106160.0,0.04711426]
[1737319077931,0.71557512,106180.0,106160.0,0.14131126]
[1737319078404,0.00014963,106180.0,106160.0,0.32969526]
[1737319078745,0.00014963,106180.0,106160.0,0.51808226]
[1737319078956,0.00014963,106180.0,106160.0,0.51808026]
[1737319079146,0.51496513,106190.0,106160.0,0.51808026]
[1737319079375,0.60947862,106190.0,106160.0,0.51822989]
[1737319079790,0.60947862,106190.0,106170.0,0.094186]
[1737319079985,0.60355862,106190.0,106170.0,0.04711426]
[1737319080209,0.60947862,106190.0,106170.0,0.04711426]
[1737319080604,0.60355862,106190.0,106170.0,0.04711426]
[1737319080787,0.75965249,106190.0,106170.0,0.04711426]
[1737319080992,0.57130149,106190.0,106170.0,0.04711426]
[1737319081188,0.75965449,106190.0,106170.0,0.04711426]
[1737319081827,0.57130149,106190.0,106170.0,0.04711426]
[1737319082379,0.10043349,106190.0,106170.0,0.23549126]
[1737319082562,0.09451349,106190.0,106170.0,0.51804026]
[1737319082949,0.264831,106200.0,106180.0,0.282534]
[1737319083188,0.79776049,106200.0,106180.0,0.04711426]
[1737319083600,0.09417,106190.0,106180.0,0.04711426]
[1737319083941,0.18868349,106190.0,106180.0,0.04711426]
[1737319084119,0.28319698,106190.0,106180.0,0.04711426]
[1737319084321,0.18868349,106190.0,106180.0,0.04711426]
[1737319084548,0.46168349,106190.0,106180.0,0.04711426]
[1737319084953,0.53818349,106190.0,106180.0,0.04711426]
[1737319086180,0.43818349,106190.0,106180.0,0.04711426]
[1737319086446,0.48578349,106190.0,106180.0,0.04711426]
[1737319086654,0.58029698,106190.0,106180.0,0.04711426]
[1737319087294,0.244188,106170.0,106160.0,0.00014963]
[1737319087523,0.34462149,106170.0,106160.0,0.00014963]
[1737319087941,0.51962149,106170.0,106160.0,0.00014963]
[1737319088114,0.54262149,106170.0,106160.0,0.00014963]
[1737319088534,0.56962149,106170.0,106160.0,0.00014963]
[1737319089008,0.41962149,106170.0,106160.0,0.00014963]
[1737319089411,0.34462149,106170.0,106160.0,0.00014963]
[1737319089585,0.33462149,106170.0,106160.0,0.00014963]
[1737319089789,0.33462149,106170.0,106160.0,0.04726389]
[1737319090626,0.32870149,106170.0,106160.0,0.04726389]
[1737319090982,0.33462149,106170.0,106160.0,0.04726389]
[1737319092924,0.32870149,106170.0,106160.0,0.04726389]
[1737319093230,0.084188,106170.0,106160.0,0.04726389]
[1737319093436,0.084188,106170.0,106160.0,0.14146089]
[1737319093639,0.470921,106180.0,106160.0,0.32985289]
[1737319094007,0.72135449,106180.0,106160.0,0.51824589]
[1737319094178,0.72135449,106180.0,106160.0,0.32985289]
[1737319094388,0.094185,106180.0,106170.0,0.094188]
[1737319094604,0.282545,106180.0,106170.0,0.04711426]
[1737319096328,0.282545,106180.0,106170.0,0.14130226]
[1737319096329,0.094185,106180.0,106170.0,0.14130226]
[1737319096997,0.094185,106180.0,106170.0,0.04711426]
[1737319098554,0.094185,106180.0,106170.0,0.14130226]
[1737319099020,0.5330527,106190.0,106170.0,0.14130226]
[1737319099257,0.53338619,106190.0,106170.0,0.32967426]
[1737319099456,0.0004277,106190.0,106180.0,0.094179]
[1737319099809,0.0004277,106190.0,106180.0,0.21769326]
[1737319100332,0.449288,106170.0,106160.0,0.00014963]
[1737319100535,0.54972149,106170.0,106160.0,0.00014963]
[1737319101122,0.54872149,106170.0,106160.0,0.00014963]
[1737319101343,0.57572149,106170.0,106160.0,0.00014963]
[1737319101552,0.70302504,106170.0,106160.0,0.00014963]
[1737319101797,0.55302504,106170.0,106160.0,0.00014963]
[1737319102212,0.64753853,106170.0,106160.0,0.00014963]
[1737319102478,0.72920504,106170.0,106160.0,0.00014963]
[1737319102701,0.65812504,106170.0,106160.0,0.00014963]
[1737319102902,0.95129001,106170.0,106160.0,0.00014963]
[1737319103292,0.95129001,106170.0,106120.0,0.1715298]
[1737319103293,0.094224,106130.0,106120.0,0.1715298]
[1737319104151,0.094224,106130.0,106120.0,0.21864406]
[1737319104355,0.471107,106140.0,106120.0,0.40710706]
[1737319104528,4.98e-05,106130.0,106120.0,0.40710706]
[1737319104906,0.6585978,106140.0,106120.0,0.40710706]
[1737319105106,0.4701568,106140.0,106120.0,0.40710706]
[1737319105508,0.094224,106130.0,106120.0,0.12441306]
[1737319105760,0.094224,106130.0,106120.0,0.04801306]
[1737319106511,0.9437201,106140.0,106120.0,0.33070606]
[1737319106755,0.66076561,106140.0,106130.0,0.094224]
[1737319106916,0.68073959,106140.0,106130.0,0.04711426]
[1737319107125,0.49229859,106140.0,106130.0,0.04711426]
[1737319107333,0.2817148,106140.0,106130.0,0.14133826]
[1737319107538,0.476973,106150.0,106130.0,0.32976826]
[1737319107759,0.57148649,106150.0,106130.0,0.32976826]
[1737319107956,0.75990949,106150.0,106130.0,0.32976826]
[1737319108458,0.282631,106150.0,106140.0,0.094215]
[1737319108661,0.282631,106150.0,106140.0,0.14132926]
[1737319108872,0.282631,106150.0,106140.0,0.04711426]
[1737319109348,0.282631,106150.0,106140.0,0.14132926]
[1737319109462,0.094211,106150.0,106140.0,0.14132926]
[1737319110294,0.600599,106150.0,106140.0,0.14132926]
[1737319111342,0.347405,106150.0,106140.0,0.14132926]
[1737319112100,0.3474,106150.0,106140.0,0.14132926]
[1737319112294,0.65931569,106150.0,106140.0,0.14132926]
[1737319113276,0.55863517,106150.0,106140.0,0.14132926]
[1737319114359,0.21123517,106150.0,106140.0,0.14132926]
[1737319114482,0.21123517,106150.0,106140.0,0.22232764]
[1737319115533,0.50694847,106150.0,106140.0,0.22232764]
[1737319116469,0.38020157,106150.0,106140.0,0.22232764]
[1737319117117,0.47440757,106150.0,106140.0,0.22232764]
[1737319117340,0.38020157,106150.0,106140.0,0.22232764]
[1737319117583,0.47440757,106150.0,106140.0,0.22232764]
[1737319117782,0.38020157,106150.0,106140.0,0.22232764]
[1737319121748,0.47440757,106150.0,106140.0,0.22232764]
[1737319121955,0.47440757,106150.0,106140.0,0.14222764]
[1737319123044,0.68564274,106150.0,106140.0,0.14222764]
[1737319124173,0.59143674,106150.0,106140.0,0.14222764]
[1737319124378,0.59143674,106150.0,106140.0,0.31368328]
[1737319124581,0.59143674,106150.0,106140.0,0.31274113]
[1737319124734,0.49143674,106150.0,106140.0,0.31274113]
[1737319126046,0.08448827,106160.0,106140.0,0.21852613]
[1737319126263,0.08448827,106160.0,106150.0,0.094206]
[1737319126676,0.08448827,106160.0,106150.0,0.14132026]
[1737319128751,0.2534673,106170.0,106160.0,0.094197]
[1737319128961,0.2536169,106170.0,106160.0,0.22071126]
[1737319130289,0.08463787,106170.0,106160.0,0.22071126]
[1737319131217,0.0001496,106170.0,106160.0,0.22071126]
[1737319131458,0.0001496,106170.0,106160.0,0.31522475]
[1737319131942,0.0001496,106170.0,106160.0,0.46522475]
[1737319135091,0.08491607,106180.0,106160.0,0.47601664]
[1737319135092,0.06608067,106180.0,106160.0,0.47601664]
[1737319135383,0.3806419,106190.0,106160.0,0.47601664]
[1737319135384,0.38018473,106190.0,106180.0,0.367979]
[1737319135664,0.38018473,106190.0,106180.0,0.57099564]
[1737319135897,0.38018473,106190.0,106180.0,0.50960675]
[1737319136303,0.38018473,106190.0,106180.0,0.57099564]
[1737319136514,0.38018473,106190.0,106180.0,1.05399409]
[1737319136720,0.0004885,106220.0,106210.0,0.094153]
[1737319137078,0.0006381,106220.0,106210.0,0.14126726]
[1737319140919,0.0006381,106220.0,106210.0,0.15032741]
[1737319142541,0.0947821,106220.0,106210.0,0.04711426]
[1737319143192,0.29457749,106220.0,106210.0,0.04711426]
[1737319143402,0.29935959,106220.0,106210.0,0.04711426]
[1737319146153,0.61302184,106220.0,106210.0,0.04711426]
[1737319146357,0.50823974,106220.0,106210.0,0.04711426]
[1737319146582,0.49747749,106220.0,106210.0,0.04711426]
[1737319146793,0.59747749,106220.0,106210.0,0.04711426]
[1737319147965,0.68157703,106220.0,106210.0,0.04711426]
[1737319148369,0.67565703,106220.0,106210.0,0.04711426]
[1737319148623,0.36087703,106220.0,106210.0,0.04711426]
[1737319149371,0.36565913,106220.0,106210.0,0.04711426]
[1737319149964,0.27867703,106220.0,106210.0,0.04711426]
[1737319150168,0.094188,106170.0,106150.0,0.30233361]
[1737319150372,0.38300549,106170.0,106150.0,0.41077845]
[1737319150583,0.00592,106170.0,106160.0,0.094197]
[1737319151346,0.288447,106190.0,106170.0,0.376735]
[1737319151483,0.288447,106190.0,106170.0,0.2827006]
[1737319151484,0.57131049,106190.0,106170.0,0.2827006]
[1737319151699,0.36659954,106200.0,106170.0,0.0001496]
[1737319151920,0.18418454,106200.0,106180.0,0.282518]
[1737319152127,0.37251254,106200.0,106180.0,0.470868]
[1737319152328,0.37251254,106200.0,106180.0,0.694087]
[1737319152559,0.36659254,106200.0,106190.0,0.09417]
[1737319152759,0.282493,106200.0,106190.0,0.12903]
[1737319153987,0.094165,106200.0,106190.0,0.12903]
[1737319154656,0.094161,106200.0,106190.0,0.317366]
[1737319154856,0.094161,106200.0,106190.0,0.12903]
[1737319158720,0.094161,106200.0,106190.0,0.03486]
[1737319161154,0.30498396,106200.0,106190.0,0.03486]
[1737319161607,0.30498396,106200.0,106190.0,0.12903]
[1737319162037,0.30498396,106200.0,106190.0,0.03486]
[1737319162237,0.30541166,106200.0,106190.0,0.03486]
[1737319163019,0.30541166,106200.0,106190.0,0.12903]
[1737319163232,0.30541166,106200.0,106190.0,0.03486]
[1737319164997,0.39992515,106200.0,106190.0,0.03486]
[1737319165414,0.56890418,106200.0,106190.0,0.03486]
[1737319166563,0.77920115,106200.0,106190.0,0.03486]
[1737319168641,0.69510161,106200.0,106190.0,0.03486]
[1737319171174,0.4738647,106200.0,106190.0,0.12903]
[1737319171989,0.3797037,106200.0,106190.0,0.12903]
[1737319172333,0.4738647,106200.0,106190.0,0.12903]
[1737319172533,0.3797037,106200.0,106190.0,0.38251007]
[1737319172736,0.3797037,106200.0,106190.0,0.68841245]
[1737319173139,0.3797037,106200.0,106190.0,0.62702356]
[1737319173351,0.2116221,106200.0,106190.0,0.62702356]
[1737319173916,0.2116221,106200.0,106190.0,0.68841245]
[1737319174116,0.2116221,106200.0,106190.0,0.62702356]
[1737319174475,0.0004277,106200.0,106190.0,0.62702356]
[1737319175380,0.0004277,106200.0,106190.0,0.68841245]
[1737319178418,0.0004277,106200.0,106190.0,0.69749832]
[1737319179958,0.0004277,106200.0,106190.0,0.63610943]
[1737319181821,0.0004277,106200.0,106190.0,0.69749832]
[1737319182700,0.0004277,106200.0,106190.0,0.79749832]
[1737319182837,0.2116221,106220.0,106210.0,0.49763307]
[1737319183045,0.08490546,106220.0,106210.0,0.62700656]
[1737319183986,0.0004277,106220.0,106210.0,0.62700656]
[1737319184189,0.0004277,106220.0,106210.0,0.68839545]
[1737319185052,0.0004277,106220.0,106210.0,1.1713939]
[1737319185386,7e-07,106220.0,106210.0,1.2943939]
[1737319185641,4.6e-07,106230.0,106220.0,0.44762407]
[1737319185860,0.50080938,106240.0,106230.0,0.49761507]
[1737319186034,0.50080938,106240.0,106230.0,1.29790479]
[1737319186266,0.50080938,106240.0,106230.0,1.44790479]
[1737319186473,0.50080938,106240.0,106230.0,1.48276479]
[1737319186675,0.00599796,106250.0,106240.0,0.2762]
[1737319186908,0.00599796,106250.0,106240.0,0.65350845]
[1737319187107,0.00599796,106250.0,106240.0,0.68836845]
[1737319187289,0.00599796,106250.0,106240.0,0.78836845]
[1737319189149,0.00599796,106250.0,106240.0,0.62697956]
[1737319189795,0.00591091,106250.0,106240.0,0.47697956]
[1737319190340,0.00591091,106250.0,106240.0,0.48620269]
[1737319190772,0.00591091,106250.0,106240.0,0.63620269]
[1737319191373,0.00591091,106250.0,106240.0,0.69759158]
[1737319192222,0.00591091,106250.0,106240.0,0.81682433]
[1737319192437,0.00591091,106250.0,106240.0,0.04408313]
[1737319192648,0.00591091,106250.0,106240.0,0.25626607]
[1737319192856,0.1699428,106260.0,106240.0,0.44451807]
[1737319193067,0.35866726,106260.0,106240.0,0.44451607]
[1737319193258,0.00092626,106260.0,106250.0,0.094117]
[1737319193498,0.00092626,106260.0,106250.0,0.22139707]
[1737319193713,0.00092626,106260.0,106250.0,0.25625707]
[1737319193936,0.00092626,106260.0,106250.0,0.50077056]
[1737319194657,0.00092626,106260.0,106250.0,0.56215945]
[1737319194863,0.00092626,106260.0,106250.0,0.58397056]
[1737319196353,0.00092626,106260.0,106250.0,0.40625707]
[1737319196574,0.00092626,106260.0,106250.0,0.278977]
[1737319196978,0.00092626,106260.0,106250.0,0.128977]
[1737319197333,0.00092626,106260.0,106250.0,0.50171169]
[1737319197543,0.00092626,106260.0,106250.0,0.50077056]
[1737319198354,0.0004281,106270.0,106260.0,0.37138807]
[1737319198551,0.00057758,106270.0,106260.0,0.40624807]
[1737319198729,0.00057758,106270.0,106260.0,0.278968]
[1737319198934,0.00057758,106270.0,106260.0,0.40624807]
[1737319199746,0.00057758,106270.0,106260.0,0.50076156]
[1737319202384,0.00057758,106270.0,106260.0,0.56215045]
[1737319202577,0.00057758,106270.0,106260.0,0.50076156]
[1737319204483,0.00057758,106270.0,106260.0,0.50986114]
[1737319207664,0.00057758,106270.0,106260.0,0.57125003]
[1737319208248,0.00057758,106270.0,106260.0,0.50986114]
[1737319209728,0.00057758,106270.0,106260.0,0.51075868]
[1737319211930,0.97319193,106310.0,106300.0,0.094073]
[1737319212140,0.69490682,106310.0,106300.0,0.128933]
[1737319212333,0.69490682,106310.0,106300.0,0.03486]
[1737319212562,0.79490682,106310.0,106300.0,0.03486]
[1737319213293,0.37309078,106310.0,106300.0,0.03486]
[1737319213702,0.37299078,106310.0,106300.0,0.03486]
[1737319214107,0.79480682,106310.0,106300.0,0.03486]
[1737319214528,0.470386,106300.0,106280.0,0.470432]
[1737319214702,0.094082,106290.0,106280.0,0.28225]
[1737319215651,0.82826549,106300.0,106280.0,0.470432]
[1737319215848,0.82817846,106300.0,106280.0,0.470432]
[1737319216395,0.64001846,106300.0,106280.0,0.470432]
[1737319216612,0.91219844,106300.0,106280.0,0.470432]
[1737319217030,0.094082,106290.0,106280.0,0.3293465]
[1737319217658,0.28859549,106290.0,106280.0,0.0470965]
[1737319218629,0.37261647,106290.0,106280.0,0.0470965]
[1737319219772,0.27261647,106290.0,106280.0,0.0470965]
[1737319219923,0.56831214,106290.0,106280.0,0.0470965]
[1737319222218,0.6943424,106290.0,106280.0,0.04799551]
[1737319222443,0.7943424,106290.0,106280.0,0.04799551]
[1737319223483,0.66762576,106290.0,106280.0,0.04799551]
[1737319223819,0.67503501,106290.0,106280.0,0.04799551]
[1737319224044,0.78193501,106290.0,106280.0,0.04799551]
[1737319224301,0.95465494,106290.0,106280.0,0.04799551]
[1737319224472,0.96077494,106290.0,106280.0,0.04799551]
[1737319224676,0.21681893,106270.0,106260.0,0.00089754]
[1737319224873,0.31133242,106270.0,106260.0,0.00089754]
[1737319225472,0.33234591,106270.0,106260.0,0.00089754]
[1737319225874,0.23783242,106270.0,106260.0,0.00089754]
[1737319226901,0.52246857,106270.0,106260.0,0.00089754]
[1737319227095,0.67246857,106270.0,106260.0,0.00089754]
[1737319227308,0.64974864,106270.0,106260.0,0.00089754]
[1737319227911,0.80047795,106270.0,106260.0,0.00089754]
[1737319228277,0.89499144,106270.0,106260.0,0.00089754]
[1737319228615,0.89499144,106270.0,106260.0,0.04799404]
[1737319228820,0.45962598,106270.0,106260.0,0.04799404]
[1737319229251,0.45962598,106270.0,106260.0,0.04679416]
[1737319230036,0.89499144,106270.0,106260.0,0.04679416]
[1737319230251,0.89499144,106270.0,106220.0,0.361508]
[1737319230252,0.470653,106240.0,106220.0,0.361508]
[1737319230458,0.56516649,106240.0,106220.0,0.36200646]
[1737319230663,0.75343149,106240.0,106220.0,0.36200646]
[1737319231854,0.75343149,106240.0,106220.0,0.48928653]
[1737319232262,0.3050561,106230.0,106220.0,0.48928653]
[1737319232458,0.3050561,106230.0,106220.0,0.17373546]
[1737319232619,0.3050561,106230.0,106220.0,0.34811203]
[1737319232817,0.39956959,106230.0,106220.0,0.34811903]
[1737319233109,0.27301693,106230.0,106220.0,0.12669496]
[1737319233312,0.27301693,106230.0,106220.0,0.04759496]
[1737319233826,0.37301693,106230.0,106220.0,0.04759496]
[1737319235476,0.79485915,106230.0,106220.0,0.04759496]
[1737319237935,0.66816851,106230.0,106220.0,0.04759496]
[1737319240230,0.66816851,106230.0,106220.0,0.27213896]
[1737319240231,0.37952002,106230.0,106220.0,0.27213896]
[1737319240458,0.47365502,106230.0,106220.0,0.27213896]
[1737319240654,0.37952002,106230.0,106220.0,0.27213896]
[1737319240871,0.17836547,106230.0,106220.0,0.27213896]
[1737319241670,0.17836547,106230.0,106220.0,0.17799496]
[1737319242031,0.094135,106230.0,106220.0,0.17799496]
[1737319242232,0.094135,106230.0,106220.0,0.27213896]
[1737319245016,0.094135,106230.0,106220.0,0.27303839]
[1737319245223,0.17836547,106230.0,106220.0,0.27303839]
[1737319245420,0.27287896,106230.0,106220.0,0.17889439]
[1737319245625,0.37287896,106230.0,106220.0,0.04849439]
[1737319245824,0.29587896,106230.0,106220.0,0.04849439]
[1737319246003,0.31859889,106230.0,106220.0,0.04849439]
[1737319246230,0.23436842,106230.0,106220.0,0.04849439]
[1737319246877,0.29586842,106230.0,106220.0,0.04849439]
[1737319247084,0.39038191,106230.0,106220.0,0.04849439]
[1737319247291,0.36766198,106230.0,106220.0,0.04849439]
[1737319247501,0.77003991,106230.0,106220.0,0.04849439]
[1737319247707,0.74731998,106230.0,106220.0,0.04849439]
[1737319247917,0.194153,106210.0,106200.0,0.0481]
[1737319248125,0.18866649,106210.0,106200.0,0.04824948]